fUSD/lending_fUSD_20240707
["ID","MTS","AMOUNT","RATE_DAILY","PERIOD"]
[331413940,1720359475425,411.51,0.00011013,2]
[331413941,1720359507688,304.6032765,0.00011199,2]
[331413942,1720359512245,1071.49821396,0.00011199,2]
[331413943,1720359522680,304.6032765,0.00011199,2]
[331413947,1720359694662,150.0,5e-05,2]
[331413948,1720359694687,21.6227175,5e-05,2]
[331413950,1720359704875,1325.40120754,0.00011199,2]
[331413951,1720359705112,625.93982727,0.00011199,2]
[331413952,1720359705809,754.48160921,0.00011199,2]
[331413953,1720359711912,2271.19558722,0.00011199,2]
[331413956,1720359735848,150.0,0.00011199,2]
[331413957,1720359735873,150.0,0.00011199,2]
[331413958,1720359735895,150.0,0.00011199,2]
[331413959,1720359735917,150.0,0.00011199,2]
[331413960,1720359735939,150.0,0.00011199,2]
[331413961,1720359735962,150.0,0.00011199,2]
[331413962,1720359735985,150.0,0.00011199,2]
[331413963,1720359736007,150.0,0.00011199,2]
[331413964,1720359736031,150.0,0.00011199,2]
[331413965,1720359736054,78.93271972,0.00011199,2]
[331413967,1720359745266,71.06728028,6.061e-05,2]
[331413968,1720359745291,168.57436773,6.061e-05,2]
[331413969,1720359745315,20087.46990475,6.061e-05,2]
[331413971,1720359755904,1086.4395604,6.061e-05,2]
[331413972,1720359757210,348.46797126,6.061e-05,2]
[331413973,1720359760260,290.66575246,6.061e-05,2]
[331413974,1720359761203,7554.66053537,6.061e-05,2]
[331413975,1720359761333,1368.57436773,6.061e-05,2]
[331413976,1720359761560,155.13135445,6.061e-05,2]
[331413977,1720359768597,19829.79653275,6.061e-05,2]
[331413979,1720359773583,19829.79653275,7.347e-05,2]
[331413980,1720359782228,20327.11155276,7.347e-05,2]
[331413981,1720359784609,959.60022678,7.347e-05,2]
[331413982,1720359798055,4230.97941331,7.347e-05,2]
[331413983,1720359798082,230.55930958,7.347e-05,2]
[331413984,1720359800402,822.39165847,7.347e-05,2]
[331413985,1720359810070,150.0,0.00011199,2]
[331413986,1720359810092,150.0,0.00011199,2]
[331413987,1720359810116,150.0,0.00011199,2]
[331413988,1720359810140,150.0,0.00011199,2]
[331413989,1720359810162,150.0,0.00011199,2]
[331413990,1720359810185,150.0,0.00011199,2]
[331413991,1720359810208,150.0,0.00011199,2]
[331413992,1720359810230,150.0,0.00011199,2]
[331413993,1720359810256,132.19238669,0.00011199,2]
[331413994,1720359813885,150.0,7.347e-05,2]
[331413995,1720359813908,150.0,7.347e-05,2]
[331413996,1720359813931,150.0,7.347e-05,2]
[331413997,1720359813956,150.0,7.347e-05,2]
[331413998,1720359813978,150.0,7.347e-05,2]
[331413999,1720359814003,150.0,7.347e-05,2]
[331414000,1720359814026,150.0,7.347e-05,2]
[331414001,1720359816433,150.0,7.347e-05,2]
[331414002,1720359816460,150.0,7.347e-05,2]
[331414003,1720359816483,150.0,7.347e-05,2]
[331414004,1720359816522,159.03202359,7.347e-05,2]
[331414005,1720359816544,150.0,7.347e-05,2]
[331414006,1720359816567,150.0,7.347e-05,2]
[331414007,1720359816590,150.0,7.347e-05,2]
[331414008,1720359816614,150.0,7.347e-05,2]
[331414009,1720359816637,150.0,7.347e-05,2]
[331414010,1720359816663,2964.8417925,7.347e-05,2]
[331414011,1720359816727,735.7999741,7.347e-05,2]
[331414012,1720359817161,290.66575246,7.347e-05,2]
[331414014,1720359825410,150.0,7.347e-05,2]
[331414015,1720359825435,150.0,7.347e-05,2]
[331414016,1720359825457,7.53440089,7.347e-05,2]
[331414018,1720359828965,150.0,7.347e-05,2]
[331414019,1720359828993,150.0,7.347e-05,2]
[331414020,1720359829024,150.0,7.347e-05,2]
[331414021,1720359829050,150.0,7.347e-05,2]
[331414022,1720359829075,150.0,7.347e-05,2]
[331414023,1720359829101,150.0,7.347e-05,2]
[331414024,1720359829126,150.0,7.347e-05,2]
[331414025,1720359829151,150.0,7.347e-05,2]
[331414026,1720359829176,150.0,7.347e-05,2]
[331414027,1720359829201,150.0,7.347e-05,2]
[331414028,1720359829226,150.0,7.347e-05,2]
[331414029,1720359829271,150.0,7.347e-05,2]
[331414030,1720359829297,150.0,7.347e-05,2]
[331414031,1720359829323,167.80761331,7.347e-05,2]
[331414032,1720359829351,150.0,7.347e-05,2]
[331414033,1720359829376,150.0,7.347e-05,2]
[331414034,1720359829401,150.0,7.347e-05,2]
[331414035,1720359829426,150.0,7.347e-05,2]
[331414036,1720359829457,150.0,7.347e-05,2]
[331414037,1720359829482,150.0,7.347e-05,2]
[331414038,1720359829508,150.0,7.347e-05,2]
[331414039,1720359829536,150.0,7.347e-05,2]
[331414040,1720359829563,150.0,7.347e-05,2]
[331414041,1720359829589,150.0,7.347e-05,2]
[331414042,1720359829615,25.91484363,7.347e-05,2]
[331414043,1720359831219,150.0,8.905e-05,2]
[331414044,1720359831248,150.0,8.905e-05,2]
[331414045,1720359831277,150.0,8.905e-05,2]
[331414046,1720359831302,150.0,8.905e-05,2]
[331414047,1720359831331,11139.33438837,8.905e-05,2]
[331414048,1720359841414,150.0,0.00011199,2]
[331414049,1720359841438,150.0,0.00011199,2]
[331414050,1720359841464,150.0,0.00011199,2]
[331414051,1720359841487,150.0,0.00011199,2]
[331414052,1720359841512,150.0,0.00011199,2]
[331414053,1720359841538,150.0,0.00011199,2]
[331414054,1720359841562,150.0,0.00011199,2]
[331414055,1720359841585,20.99712556,0.00011199,2]
[331414056,1720359841722,129.00287444,8.905e-05,2]
[331414057,1720359841746,58.5371458,8.905e-05,2]
[331414058,1720359841794,91.4628542,8.905e-05,2]
[331414059,1720359841818,150.0,8.905e-05,2]
[331414060,1720359841842,150.0,8.905e-05,2]
[331414061,1720359841870,150.0,8.905e-05,2]
[331414062,1720359841893,150.0,8.905e-05,2]
[331414063,1720359841916,96.59272386,8.905e-05,2]
[331414064,1720359841978,53.40727614,8.905e-05,2]
[331414065,1720359842002,101.59272386,8.905e-05,2]
[331414066,1720359843881,1092.62775885,8.905e-05,2]
[331414067,1720359855325,731.67559911,8.905e-05,2]
[331414068,1720359856584,1351.92849631,8.905e-05,2]
[331414069,1720359857075,600.0,8.905e-05,2]
[331414070,1720359861431,150.0,8.905e-05,2]
[331414071,1720359861456,150.0,8.905e-05,2]
[331414072,1720359861480,150.0,8.905e-05,2]
[331414073,1720359861503,150.0,8.905e-05,2]
[331414074,1720359861527,150.0,8.905e-05,2]
[331414075,1720359861555,150.0,8.905e-05,2]
[331414076,1720359861579,150.0,8.905e-05,2]
[331414077,1720359861602,150.0,8.905e-05,2]
[331414078,1720359861627,150.0,8.905e-05,2]
[331414079,1720359861650,164.95803162,8.905e-05,2]
[331414080,1720359861677,885.04196838,8.905e-05,2]
[331414082,1720359866264,155.14654103,8.905e-05,2]
[331414083,1720359875420,300.0,8.905e-05,2]
[331414084,1720359879012,550.32575246,8.905e-05,2]
[331414085,1720359880163,430.49973598,8.905e-05,2]
[331414086,1720359880492,1195.0,8.905e-05,2]
[331414087,1720359884816,173.76628846,0.00011199,2]
[331414088,1720359902513,305.0,0.00010794,2]
[331414089,1720359904730,2000.0,0.00011199,2]
[331414090,1720359909893,550.58245476,0.00010794,2]
[331414094,1720359952900,1055.59846632,0.00011199,2]
[331414097,1720360031906,1750.08927403,0.00011199,2]
[331414098,1720360032717,304.6032765,0.00011199,2]
[331414099,1720360044733,3039.0,0.00011199,2]
[331414100,1720360047197,414.07,9.983e-05,2]
[331414101,1720360072683,1500.0,0.00011199,2]
[331414102,1720360078956,627.12487314,0.00011199,2]
[331414103,1720360081804,201.86287448,0.00011199,2]
[331414104,1720360106938,-2000.0,0.00011311,2]
[331414105,1720360106977,-1895.54650816,0.00011424,2]
[331414110,1720360107070,-2277.94035358,0.000118,2]
[331414113,1720360107164,-6173.48686174,0.000118,2]
[331414114,1720360107261,-3154.738071,0.000118,2]
[331414115,1720360107302,-414.07,0.00012247,2]
[331414116,1720360107339,-205.92118094,0.00012273,2]
[331414117,1720360118440,483.62526826,0.00011199,2]
[331414125,1720360171583,240.73383763,0.00011199,2]
[331414126,1720360175129,6611.0,0.00027,120]
[331414128,1720360181864,155.0,0.00011199,2]
[331414133,1720360232073,-345.22,0.00012298,2]
[331414134,1720360232083,-250.0,0.00012304,2]
[331414135,1720360232093,-300.0,0.00012316,2]
[331414136,1720360232103,-42.99279485,0.00012317,2]
[331414140,1720360232364,-23847.00720515,0.00012317,2]
[331414141,1720360232375,-1000.0,0.00012317,2]
[331414142,1720360232386,-373.29,0.00012317,2]
[331414143,1720360232396,-425.98,0.00012353,2]
[331414144,1720360232408,-3153.87,0.00012353,2]
[331414145,1720360232419,-368.15,0.00012811,2]
[331414146,1720360232428,-368.15,0.00012815,2]
[331414152,1720360232992,-368.15,0.00012818,2]
[331414153,1720360233002,-368.15,0.00012821,2]
[331414154,1720360233011,-368.15,0.00012825,2]
[331414155,1720360233020,-368.15,0.00012828,2]
[331414156,1720360233030,-368.15,0.00012831,2]
[331414157,1720360233040,-368.15,0.00012835,2]
[331414158,1720360233049,-368.15,0.00012838,2]
[331414159,1720360233059,-368.15,0.00012842,2]
[331414160,1720360233069,-368.15,0.00012845,2]
[331414161,1720360233078,-368.15,0.00012848,2]
[331414162,1720360233088,-368.15,0.00012852,2]
[331414163,1720360233098,-368.15,0.00012855,2]
[331414164,1720360233108,-150.71,0.00012857,2]
[331414165,1720360233117,-368.15,0.00012858,2]
[331414166,1720360233127,-368.15,0.00012862,2]
[331414167,1720360233137,-368.15,0.00012865,2]
[331414168,1720360233146,-368.15,0.00012868,2]
[331414169,1720360233157,-368.15,0.00012872,2]
[331414170,1720360233166,-368.15,0.00012875,2]
[331414171,1720360233176,-1389.1,0.00012893,2]
[331414172,1720360233186,-162.64157099,0.00013128,2]
[331414173,1720360233195,-173.27,0.0001321,2]
[331414174,1720360233206,-150.0,0.00013278,2]
[331414175,1720360233215,-249.29,0.00013364,2]
[331414176,1720360233225,-7753.0,0.00013448,2]
[331414177,1720360233235,-660.50574852,0.00013472,2]
[331414178,1720360233246,-1287.78898376,0.00013472,2]
[331414179,1720360233256,-288.10485861,0.00013472,2]
[331414180,1720360233266,-1386.16661453,0.00013472,2]
[331414181,1720360233275,-418.13,0.000135,2]
[331414182,1720360233285,-1253.30119177,0.00013516,2]
[331414183,1720360233295,-304.6032765,0.00013516,2]
[331414184,1720360233306,-1264.45674502,0.00013516,2]
[331414185,1720360233315,-420.0,0.00013516,2]
[331414186,1720360233325,-364.12910623,0.00013516,2]
[331414187,1720360233335,-795.39303922,0.00013574,2]
[331414188,1720360233345,-182004.26335504,0.00013574,2]
[331414189,1720360233354,-1256.0721124,0.0001358,2]
[331414190,1720360233364,-355.03,0.00013778,2]
[331414191,1720360233374,-504.5624,0.000138,2]
[331414192,1720360233384,-211.254662,0.00013801,2]
[331414193,1720360233393,-156.914029,0.00013801,2]
[331414194,1720360233403,-165.652823,0.00013801,2]
[331414195,1720360233413,-165.716324,0.00013801,2]
[331414196,1720360233423,-182.194857,0.00013801,2]
[331414197,1720360233433,-201.991339,0.00013801,2]
[331414198,1720360233443,-155.0,0.00013802,2]
[331414199,1720360233453,-150.0,0.00013803,2]
[331414200,1720360233462,-975.20044548,0.00013849,2]
[331414201,1720360233472,-788.84536282,0.00013849,2]
[331414202,1720360233481,-1000.0,0.00013857,2]
[331414203,1720360233490,-14475.39999237,0.0001388,2]
[331414204,1720360233500,-3000.0,0.0001388,2]
[331414205,1720360233508,-500.0,0.00013887,2]
[331414206,1720360233518,-500.0,0.00013888,2]
[331414207,1720360233527,-500.0,0.00013888,2]
[331414208,1720360233536,-200.0,0.00013888,2]
[331414209,1720360233545,-193.67622341,0.00013889,2]
[331414210,1720360233554,-647.95522269,0.00013889,2]
[331414211,1720360233569,-315.96457783,0.00013889,2]
[331414212,1720360233578,-321.56949677,0.0001389,2]
[331414213,1720360233588,-718.81426358,0.00013899,2]
[331414214,1720360233598,-187.68386329,0.00013899,2]
[331414215,1720360233608,-1357.6108,0.000139,2]
[331414216,1720360233618,-100328.3602,0.000139,2]
[331414217,1720360233628,-166.26545285,0.000139,2]
[331414218,1720360233639,-629.7,0.000139,2]
[331414219,1720360233649,-1076.0,0.000139,2]
[331414220,1720360233661,-157.44730638,0.000139,2]
[331414221,1720360233672,-170.11216703,0.000139,2]
[331414222,1720360233683,-2273.5247629,0.000139,2]
[331414223,1720360233693,-150.0,0.00013945,2]
[331414224,1720360233703,-3000.0,0.0001396,2]
[331414225,1720360233713,-390.72017738,0.0001396,2]
[331414226,1720360233723,-39922.7124836,0.00013989,2]
[331414227,1720360233733,-533.66826194,0.00013989,2]
[331414228,1720360233742,-694.1984021,0.00013989,2]
[331414229,1720360233753,-720.86438453,0.00013989,2]
[331414230,1720360233764,-241.61284913,0.00013989,2]
[331414231,1720360233774,-355.88562384,0.00013989,2]
[331414232,1720360233786,-201.95024084,0.00013989,2]
[331414233,1720360233796,-2078.5773229,0.00013989,2]
[331414234,1720360233805,-207.85836578,0.00013989,2]
[331414235,1720360233815,-155.98024135,0.00013989,2]
[331414236,1720360233825,-16700.90693838,0.0001399,2]
[331414237,1720360233838,-640.72236204,0.0001399,2]
[331414238,1720360233850,-5854.9058077,0.0001399,2]
[331414239,1720360233863,-469.02406266,0.0001399,2]
[331414240,1720360233877,-403.61188036,0.0001399,2]
[331414252,1720360239564,-1051.02158597,0.00013736,2]
[331414275,1720360240811,-84.73959611,0.00013736,2]
[331414277,1720360240820,-190.85369923,0.000139,2]
[331414278,1720360240830,-32.24570466,0.0001399,2]
[331414280,1720360240842,-1091.80896236,0.0001399,2]
[331414281,1720360240854,-5533.35431226,0.0001399,2]
[331414282,1720360240865,-553.16,0.0001399,2]
[331414283,1720360240877,-427.28702,0.0001399,2]
[331414284,1720360240931,-2385.70202288,0.0001399,2]
[331414285,1720360240943,-1775.0390472,0.0001399,2]
[331414286,1720360240953,-1106.10866471,0.00013999,5]
[331414287,1720360240964,-651.44479338,0.00013999,2]
[331414288,1720360240975,-227.22563372,0.00013999,2]
[331414289,1720360240984,-623.24386191,0.00013999,2]
[331414290,1720360240994,-155.30638089,0.00013999,2]
[331414291,1720360241003,-156.2168413,0.00013999,2]
[331414292,1720360241013,-195.92266575,0.00013999,2]
[331414293,1720360241023,-155.0,0.00013999,2]
[331414294,1720360241032,-255.13146021,0.00013999,2]
[331414295,1720360241042,-971.0,0.00014,2]
[331414296,1720360241051,-395186.32413532,0.00014,2]
[331414297,1720360241062,-807.664508,0.00014,2]
[331414298,1720360241074,-6933.01282375,0.00014,2]
[331414300,1720360241085,-1034.268095,0.00014,2]
[331414302,1720360241096,-678.20679915,0.00014,2]
[331414304,1720360241108,-1129.10829927,0.00014,2]
[331414306,1720360241120,-14055.22903791,0.00014,2]
[331414308,1720360241132,-470.89476816,0.00014,2]
[331414310,1720360241143,-463.62,0.00014,2]
[331414313,1720360241161,-4737.26219031,0.00014,2]
[331414380,1720360243259,-276.14588648,0.00013999,2]
[331414381,1720360243269,-97.36731352,0.00014,2]
[331414382,1720360243281,-498.40500001,0.00014,2]
[331414383,1720360245372,-307497.32522613,0.00014,2]
[331414417,1720360246262,-776.28720627,0.00014,2]
[331414449,1720360246615,-5695.99579231,0.00014,2]
[331414454,1720360556901,-150.0,0.00011257,2]
[331414455,1720360557330,-150.0,0.00011257,2]
[331414456,1720360557764,-105.03,0.00011257,2]
[331414457,1720360822480,501.51140209,0.0002,120]
[331414458,1720360885393,150.0,0.00011199,2]
[331414459,1720360885417,150.0,0.00011199,2]
[331414460,1720360885442,150.0,0.00011199,2]
[331414461,1720360885466,150.0,0.00011199,2]
[331414462,1720360885491,150.0,0.00011199,2]
[331414463,1720360885519,150.0,0.00011199,2]
[331414464,1720360885544,150.0,0.00011199,2]
[331414465,1720360885569,150.0,0.00011199,2]
[331414466,1720360885594,150.0,0.00011199,2]
[331414467,1720360885636,213.54436773,0.00011199,2]
[331414468,1720360885668,26475.88633691,0.00011199,2]
[331414469,1720360909854,174.15,0.00010435,2]
[331414470,1720360940232,236.54372154,0.00010435,2]
[331414471,1720360962280,239.64164801,0.00010435,2]
[331414472,1720360963810,1135.23446764,0.00011199,2]
[331414473,1720361014822,172.94473413,0.00011199,2]
[331414474,1720361014851,30.97551261,0.00011199,2]
[331414475,1720361054241,309.99406906,0.00011199,2]
[331414476,1720361087435,213.04858059,0.00011199,2]
[331414477,1720361100456,24725.94279289,0.00011199,2]
[331414479,1720361158156,155.0,0.00011199,2]
[331414480,1720361166071,155.0,0.00011199,2]
[331414481,1720361168455,10994.48154505,0.00011199,2]
[331414482,1720361184831,3123.93961181,0.00011199,2]
[331414483,1720361211385,416.71,0.00010999,2]
[331414484,1720361214322,155.0,0.00011199,2]
[331414485,1720361217453,155.0,0.00011199,2]
[331414487,1720361246524,308.80759156,0.00011199,2]
[331414491,1720361301855,6228.25159604,0.00011199,2]
[331414493,1720361376063,2633.6905777,0.00011199,2]
[331414496,1720361415993,15436.64259195,0.00011199,2]
[331414498,1720361432408,-5696.70000001,0.00012202,2]
[331414499,1720361432544,-457.01542804,0.00012202,2]
[331414524,1720361441067,-63.49957195,0.00012202,2]
[331414525,1720361441081,-626.30570402,0.00012314,2]
[331414526,1720361441094,-939.4127954,0.00012867,2]
[331414527,1720361441108,-250.0,0.00012967,2]
[331414528,1720361441121,-199.43,0.00013006,2]
[331414529,1720361441135,-300.0,0.00013127,2]
[331414530,1720361441149,-1000.0,0.00013246,2]
[331414531,1720361441163,-416.71,0.00013263,2]
[331414532,1720361441176,-200.0,0.00013462,2]
[331414533,1720361441190,-1287.18127218,0.00013472,2]
[331414534,1720361441203,-1913.3014,0.00013474,2]
[331414535,1720361441216,-1140.81393799,0.00013516,2]
[331414536,1720361441230,-647.64425087,0.00013516,2]
[331414537,1720361441245,-210.25612543,0.00013543,2]
[331414538,1720361441263,-173.8234745,0.00013574,2]
[331414539,1720361441276,-250.0,0.00013699,2]
[331414540,1720361441290,-150.0,0.00013735,2]
[331414541,1720361441305,-12058.38227396,0.00013736,2]
[331414542,1720361441317,-1779.22218,0.0001386,2]
[331414544,1720361441328,-385.42000634,0.00013863,2]
[331414547,1720361441343,-500.0,0.00013887,2]
[331414549,1720361441355,-500.0,0.00013888,2]
[331414551,1720361441367,-315.96457783,0.00013899,2]
[331414554,1720361441379,-166.26545284,0.000139,2]
[331414556,1720361441390,-599.55,0.000139,2]
[331414558,1720361441403,-2217.42562753,0.000139,2]
[331414561,1720361441415,-3446.4424,0.000139,2]
[331414563,1720361441426,-321.56949673,0.000139,2]
[331414565,1720361441439,-300.0,0.00013945,2]
[331414567,1720361441450,-1241.005645,0.00013973,2]
[331414570,1720361441462,-1146.5370926,0.00013989,2]
[331414572,1720361441474,-7261.4434753,0.00013989,2]
[331414574,1720361441487,-22005.6357,0.00013989,2]
[331414576,1720361441500,-958.907151,0.0001399,2]
[331414579,1720361441516,-6072.1001646,0.0001399,2]
[331414581,1720361441530,-18408.1202326,0.0001399,2]
[331414583,1720361441542,-193.58247503,0.00013999,2]
[331414586,1720361441555,-785.0,0.00014,2]
[331414590,1720361441568,-1070.0,0.00014,2]
[331414592,1720361441583,-120401.31772788,0.00014,2]
[331414598,1720361441627,-20000.0,0.00014,2]
[331414602,1720361441660,-1041.08910441,0.00014,2]
[331414605,1720361441677,-257.0,0.00014,2]
[331414608,1720361441695,-272.83279845,0.00014,2]
[331414611,1720361441713,-7345.51132214,0.00014,2]
[331414614,1720361441732,-298.0,0.00014,2]
[331414617,1720361441750,-328.33625996,0.00014,2]
[331414619,1720361441770,-884.28338425,0.00014,2]
[331414642,1720361441984,-472.96524608,0.00014,2]
[331414650,1720361442044,-520.508211,0.00014,2]
[331414798,1720361446714,-2123.69096423,0.00014,2]
[331414799,1720361446728,-19658.67835662,0.00014,2]
[331414800,1720361446749,-1485.65000001,0.00014,2]
[331414801,1720361446886,-1486.0,0.00014,2]
[331414802,1720361446903,-5576.99999999,0.00014,2]
[331414803,1720361446915,-313086.4379482,0.00014,2]
[331414804,1720361493406,260.16132395,0.00026,120]
[331414805,1720361502918,171.75,0.00010534,2]
[331414806,1720361679865,215.87766723,0.00011199,2]
[331414807,1720361679906,2159.84154947,0.00011199,2]
[331414808,1720361685098,1200.8672476,0.00011199,2]
[331414809,1720361685140,616.01667082,0.00011199,2]
[331414810,1720361710990,1253.30119177,0.00011199,2]
[331414811,1720361727362,1372.17224312,0.00011199,2]
[331414812,1720361738991,156.57480105,0.00011199,2]
[331414813,1720361739018,33.42519895,0.00011199,2]
[331414814,1720361760206,1071.24766976,0.00011199,2]
[331414815,1720361779645,193.62934922,0.00011199,2]
[331414816,1720361780697,474.28975858,0.00011199,2]
[331414817,1720361792669,651.44479338,0.00011199,2]
[331414818,1720361825844,518.76067207,0.00011199,2]
[331414820,1720361907027,496.41,0.00010957,2]
[331414821,1720361919791,156.47,0.0001121,2]
[331414822,1720361987579,16657.72134105,0.00011199,2]
[331414823,1720361988024,2377.36233495,0.00011199,2]
[331414824,1720362093366,1547.97912297,0.00011199,2]
[331414825,1720362186544,700.40708654,0.00011199,2]
[331414826,1720362213837,2685.52554124,0.00011199,2]
[331414827,1720362214026,4605.65632474,0.00011199,2]
[331414828,1720362214613,627.27317278,0.00011199,2]
[331414829,1720362237093,10525.28715581,0.00011199,2]
[331414830,1720362249059,788.84536282,0.00011199,2]
[331414831,1720362288608,1287.48512797,0.00011199,2]
[331414832,1720362300784,155.94954403,0.00011199,2]
[331414833,1720362307941,2009.50331185,0.00011199,2]
[331414834,1720362307964,1855.96238647,0.00011199,2]
[331414835,1720362328572,619.15328092,0.00011199,2]
[331414836,1720362355920,205.77904189,0.00011199,2]
[331414837,1720362398388,2738.73540741,0.00011199,2]
[331414838,1720362404813,717.65350727,0.00011199,2]
[331414839,1720362465287,243.15282028,0.00011199,2]
[331414840,1720362467875,1547.97912297,0.00011199,2]
[331414841,1720362497446,200.6439511,0.00011143,2]
[331414842,1720362499876,2617.88190555,0.00011199,2]
[331414843,1720362567951,600.0,0.00011199,2]
[331414844,1720362572148,2558.47984956,0.00011199,2]
[331414845,1720362597459,450.69422845,0.00011199,2]
[331414846,1720362599265,1903.65279599,0.00011199,2]
[331414847,1720362600566,471.58,0.00010919,2]
[331414848,1720362600613,626.9765735,0.00011199,2]
[331414849,1720362603320,2641.67512864,0.00011199,2]
[331414850,1720362603343,95.87921267,0.00011199,2]
[331414851,1720362613769,200.0,0.00011143,2]
[331414852,1720362621141,691.14739766,0.00011199,2]
[331414857,1720362632982,-250.0,0.00012774,2]
[331414858,1720362632997,-13.4229944,0.00012783,2]
[331414859,1720362633026,-236.5770056,0.00012783,2]
[331414860,1720362633036,-11213.18,0.00012789,2]
[331414861,1720362633047,-200.03,0.00012801,2]
[331414862,1720362633057,-7227.12,0.00012939,2]
[331414863,1720362633067,-328.82033738,0.00013128,2]
[331414864,1720362633077,-775.8,0.0001317,2]
[331414865,1720362633087,-1000.0,0.00013178,2]
[331414866,1720362633096,-177.5,0.00013178,2]
[331414867,1720362633105,-471.58,0.00013183,2]
[331414868,1720362633115,-200.45,0.00013425,2]
[331414869,1720362633124,-6657.44063354,0.000135,2]
[331414871,1720362639648,-2371.68785721,0.000135,2]
[331414877,1720362641714,-619.15328092,0.000135,2]
[331414889,1720362641876,-351.71822833,0.000135,2]
[331414890,1720362641887,-419.14,0.000135,2]
[331414891,1720362641897,-787.95830604,0.00013516,2]
[331414892,1720362641908,-787.95830604,0.00013516,2]
[331414894,1720362641918,-290.66575246,0.00013574,2]
[331414896,1720362641928,-2351.26486666,0.00013574,2]
[331414898,1720362641939,-400.945076,0.00013574,2]
[331414900,1720362641949,-115.70985349,0.00013574,2]
[331414902,1720362641962,-1151.85141759,0.00013574,2]
[331414904,1720362641972,-245.12,0.00013699,2]
[331414906,1720362641983,-250.0,0.00013699,2]
[331414907,1720362641993,-150.0,0.00013788,2]
[331414908,1720362642003,-355.03,0.00013788,2]
[331414909,1720362642013,-150.0,0.00013793,2]
[331414910,1720362642023,-172.733294,0.00013801,2]
[331414911,1720362642033,-164.196939,0.00013801,2]
[331414912,1720362642043,-161.593069,0.00013801,2]
[331414913,1720362642056,-164.196939,0.00013801,2]
[331414914,1720362642066,-169.224809,0.00013801,2]
[331414915,1720362642076,-197.974977,0.00013801,2]
[331414916,1720362642086,-150.0,0.00013808,2]
[331414917,1720362642096,-150.0,0.00013824,2]
[331414918,1720362642105,-150.0,0.0001384,2]
[331414919,1720362642115,-150.0,0.0001384,2]
[331414920,1720362642125,-315.96457783,0.00013849,2]
[331414921,1720362642136,-150.0,0.00013858,2]
[331414922,1720362642146,-150.0,0.0001386,2]
[331414923,1720362642156,-150.0,0.0001386,2]
[331414924,1720362642167,-153.18864,0.0001386,2]
[331414925,1720362642176,-150.0,0.0001386,2]
[331414926,1720362642187,-1621.93495348,0.0001388,2]
[331414927,1720362642200,-1378.06504652,0.0001388,2]
[331414928,1720362642210,-1582.76051845,0.0001388,2]
[331414930,1720362642224,-196.46166155,0.0001388,2]
[331414932,1720362642234,-500.0,0.00013888,2]
[331414935,1720362642245,-722.36239335,0.00013889,2]
[331414937,1720362642255,-647.79973678,0.00013889,2]
[331414939,1720362642265,-220.31,0.0001389,3]
[331414941,1720362642276,-550.47522257,0.00013899,2]
[331414943,1720362642286,-2118.48951214,0.000139,2]
[331414945,1720362642299,-5763.87917686,0.000139,2]
[331414947,1720362642310,-291.0,0.000139,2]
[331414949,1720362642320,-1251.0,0.000139,2]
[331414951,1720362642331,-361.0,0.000139,2]
[331414953,1720362642341,-1830.0,0.000139,2]
[331414955,1720362642352,-1659.0,0.000139,2]
[331414957,1720362642362,-1199.0,0.000139,2]
[331414960,1720362642372,-8.92083391,0.000139,2]
[331414962,1720362642389,-435.07916609,0.000139,2]
[331414964,1720362642400,-265.32792045,0.000139,2]